Cogmind - Beta 16 @@@ ROGUE MODE // 2025.12.07 @ 01:17:53 Player: Trione Result: Destroyed self with Subdweller Shrapnel Launcher Performance ------------- Evolutions (0) 0 Regions Visited (2) 400 Robots Destroyed (36) 180 Value Destroyed (878) 878 Prototype IDs (0) 0 Alien Tech Used (0) 0 Bonus (0) 0 TOTAL SCORE: 1458 Bonus ------- None Cogmind --------- Core Integrity 0/250 Matter 108/300 Energy 72/100 System Corruption 0% Temperature Cool (0) Movement Treading (160) Location -10/Subcaves Parts ------- > --- POWER (1) -------- (None) > --- PROPULSION (2) --- Light Treads Light Treads > --- UTILITY (2) ------ (None) > --- WEAPON (2) ------- EM Pulse Gun Subdweller Shrapnel Launcher > --- INVENTORY (5) ---- Wheel Large Matter Pod (150) Subdweller Beam Cannon Dirty Datajack (15) Hammer Peak State ------------ > --- POWER ------------ Light Nuclear Core > --- PROPULSION ------- Light Treads Light Treads > --- UTILITY ---------- Scrap Shield > --- WEAPON ----------- EM Pulse Gun Dirty Datajack > --- INVENTORY -------- Wheel Large Matter Pod Subdweller Beam Cannon Hammer Scrap Shield Fragment [Rating: 16] Favorites ----------- Power Light Nuclear Core Engine Ion Engine Power Core Light Nuclear Core Propulsion Light Treads Treads Light Treads Wheel Wheel Utility Improved Terrain Scanner Device Improved Terrain Scanner Storage Small Storage Unit Processor Machine Analyzer Protection Scrap Shield Weapon Beam Cannon Energy Gun EM Pulse Gun Energy Cannon Beam Cannon Ballistic Gun Subdweller Machine Gun Ballistic Cannon Light Cannon Launcher Subdweller Shrapnel Launcher Impact Weapon Hammer Special Melee Weapon Dirty Datajack Build | -11 -10 -10 ------- Run | Yrd Mat Sub Slots Evolved . | . . . Power . | . . . Propulsion . | . . . Utility . | . . . Weapon . | . . . Parts Attached 28 | 8 9 11 Power 3 | 2 1 . Engine 2 | 2 . . Core 1 | . 1 . Reactor . | . . . Propulsion 6 | 2 1 3 Treads 3 | . . 3 Leg . | . . . Wheel 3 | 2 1 . Hover . | . . . Flight . | . . . Utility 5 | 2 1 2 Device 1 | 1 . . Storage 2 | 1 1 . Processor 1 | . . 1 Hackware . | . . . Protection 1 | . . 1 Artifact . | . . . Weapon 14 | 2 6 6 Energy Gun 3 | 1 1 1 Energy Cannon 5 | . 3 2 Ballistic Gun 2 | 1 . 1 Ballistic Cannon 1 | . 1 . Launcher 1 | . . 1 Special Weapon . | . . . Impact Weapon 1 | . 1 . Slashing Weapon . | . . . Piercing Weapon . | . . . Special Melee Weapon 1 | . . 1 Unidentified Prototypes . | . . . Parts Lost 3 | . . 3 Power 1 | . . 1 Propulsion . | . . . Utility 2 | . . 2 Weapon . | . . . Highest Loss Streak 2 | . . 2 To Critical Strikes . | . . . Average Backups 6 | 5 7 5 Power . | . 1 . Propulsion 2 | 3 3 1 Utility . | . . 1 Weapon 2 | . 2 2 Tool/Special . | . . . Unused Backups 10 | . 5 5 Power . | . . . Propulsion 5 | . 3 2 Utility 2 | . 1 1 Weapon 3 | . 1 2 Tool/Special . | . . . Average Slot Usage (%) 92 | . 100 88 Engine 2 | . 8 . Core 11 | . 5 13 Treads 15 | . . 23 Wheel 12 | . 28 4 Device 6 | . 14 2 Storage 7 | . 14 3 Protection 6 | . . 10 Energy Gun 6 | . 1 8 Energy Cannon 10 | . 16 7 Ballistic Gun 3 | . 1 4 Impact Weapon 7 | . 6 7 Peak Build Rating 16 | 9 11 16 Average Rating 10 | 7 9 11 On Entrance 6 | . 9 11 Avg Prop Armor Cover (%) . | . . . Naked Turns . | . . . Heaviest Build 33 | 13 22 33 Greatest Support 40 | 26 26 40 Greatest Overweight (x) . | . . . Average Overweight (x) . | . . . Largest Inventory Capacity 10 | 8 10 10 Average Capacity 7 | 7 8 6 Most Carried 10 | 6 8 10 Average Carried 6 | 5 7 5 Final Capacity 10 | 8 10 5 Final Carried 8 | 6 8 5 Class Distribution -------------------- 100% | Mutant Dominant Class ---------------- Mutant | -10/Materials Mutant | -10/Subcaves Resources | -11 -10 -10 ----------- Run | Yrd Mat Sub Matter Collected 929 | 301 421 207 Remotely . | . . . Salvage Created 1069 | 131 461 477 Parts 69 | 12 27 30 Haulers Intercepted 2 | . 2 . Recyclers Shooed 1 | . 1 . Parts Field Recycled . | . . . Retrieved Matter . | . . . Parts Self-Destructed 11 | . . 11 Prevented . | . . . Parts Restored . | . . . Kills | -11 -10 -10 ------- Run | Yrd Mat Sub Combat Hostiles Destroyed 26 | . 11 15 Melee 2 | . . 2 Guns 1 | . . 1 Cannons 19 | . 11 8 AOE 3 | . . 3 Classes Destroyed 8 | 3 4 1 Worker 2 | 1 1 . Tunneler 3 | 3 . . Hauler 2 | . 2 . Recycler 1 | 1 . . Watcher 2 | . 2 . Swarmer 7 | . 6 1 Grunt 5 | . 5 . Subdweller 14 | . . 14 Best Kill Streak 3 | 2 3 3 Combat Bots Only 3 | . 3 3 Max Kills in Single Turn 1 | 1 1 1 Gunslinging . | . . . Exploded 1 | . . 1 Melee 1 | . . 1 Uniques/NPCs Destroyed . | . . . Combat | -11 -10 -10 -------- Run | Yrd Mat Sub Hostile Shots Fired 134 | . 23 111 Missed 59 | . 6 53 Hits 75 | . 17 58 Projectile 75 | . 17 58 Critical Strikes 2 | . . 2 Damage Taken 1384 | . 158 1226 Core 254 | . 26 228 Absorbed by Shields . | . . . Core Remaining (%) 100 | 100 . . Volleys Fired 110 | 21 22 67 Largest 2 | 2 2 2 Hottest 120 | 60 120 120 Shots Fired 197 | 42 43 112 Gun 86 | 42 4 40 Cannon 103 | . 39 64 Launcher 8 | . . 8 Special . | . . . Kinetic 51 | 21 5 25 Thermal 122 | 21 37 64 Explosive . | . . . Electromagnetic 24 | . 1 23 Robot Hit Streak 11 | 6 10 11 Robot Miss Streak 3 | 3 3 3 Penetration Max . | . . . Secondary Targets . | . . . Shots Hit Robots 136 | 29 28 79 Core Hits 51 | 9 16 26 Critical Kills 1 | . . 1 Critical Parts Destroyed 3 | . 2 1 Critical Strikes 4 | . 2 2 Smash 4 | . 2 2 Melee Attacks 64 | . 27 37 Impact 59 | . 27 32 Slashing . | . . . Piercing 5 | . . 5 Sneak Attacks 2 | . 2 . Combat Hostiles . | . . . Follow-up Attacks . | . . . Damage Inflicted 2817 | 288 557 1972 Guns 606 | 288 18 300 Cannons 1362 | . 425 937 Explosions 605 | . . 605 Melee 244 | . 114 130 Ramming . | . . . Kinetic 909 | 110 36 763 Thermal 1522 | 178 407 937 Explosive . | . . . Electromagnetic 142 | . . 142 Impact 239 | . 114 125 Slashing . | . . . Piercing 5 | . . 5 Highest Corruption . | . . . Average Corruption . | . . . Corruption Purged . | . . . Corruption Blocked . | . . . Overload Shots . | . . . Overflow Damage 98 | . 79 19 Projectiles . | . . . Explosions . | . . . Melee 98 | . 79 19 Knockbacks 3 | . 3 . Impact 3 | . 3 . Kinetic . | . . . Secondary . | . . . Self-Inflicted Damage 88 | . . 88 Shots 2 | . . 2 Rammed . | . . . Targets Rammed . | . . . Kicked . | . . . Crushed . | . . . Highest Temperature 259 | 40 259 254 Average Temperature 52 | 20 75 43 Received Heat Transfer 512 | . 30 482 Siege Activations . | . . . Martial Activations . | . . . Shielding Activations . | . . . Robots Disrupted . | . . . Combat Hostiles . | . . . Robots Corrupted 3 | . 2 1 Combat Hostiles 1 | . . 1 Parts Fried 5 | . 1 4 Impact Corruptions 5 | . 4 1 Robots Melted . | . . . Combat Hostiles . | . . . Parts Melted 4 | . 1 3 Heat Transferred 2990 | 400 851 1739 Parts Sabotaged . | . . . Parts Stolen . | . . . Parts Stripped . | . . . Power Chain Reactions . | . . . Alert | -11 -10 -10 ------- Run | Yrd Mat Sub Maximum Alert Level . | . . . Low Security (%) 100 | 100 100 . Level 1 . | . . . Level 2 . | . . . Level 3 . | . . . Level 4 . | . . . Level 5 . | . . . High Security . | . . . Max Security . | . . . Peak Influence 123 | 5 123 . Initial . | . . . Average 40 | 1 47 . Influence Increases 691 | 25 496 170 Destroy 0b10 Robot/C 240 | . 220 20 Destroy 0b10 Robot/NC 50 | 25 25 . Destroy Leader 58 | . 58 . Successful Hack 40 | . 40 . Select Force Hacks 60 | . 60 . Destroy Structure 18 | . 18 . Partial Spotted 15 | . 15 . Lose Combat Pursuer 210 | . 60 150 Influence Decreases 565 | 25 432 108 Entered New Map 32 | . . 32 Time Decay 493 | 25 432 36 Lost Part 20 | . . 20 Lost Ally 20 | . . 20 Squads Dispatched 2 | . 2 . Investigation 2 | . 2 . Extermination . | . . . Reinforcement . | . . . Assault . | . . . Garrison . | . . . Intercept . | . . . Searches Triggered . | . . . Construction Impeded . | . . . Haulers Reinforced . | . . . Active Scanning Responses . | . . . Cargo Convoy Interrupts . | . . . Stealth | -11 -10 -10 --------- Run | Yrd Mat Sub Distress Signals 8 | . 8 . Communications Jammed . | . . . Distress Signals . | . . . Times Spotted 54 | . 28 26 Peak Tracking Total 5 | . 5 5 Tactical Retreats 6 | . 4 2 Traps | -11 -10 -10 ------- Run | Yrd Mat Sub Traps Triggered . | . . . Indirectly . | . . . Trap Hack Attempts . | . . . Triggered . | . . . Disarmed 3 | . 3 . Reprogrammed . | . . . Reused . | . . . Traps Extracted . | . . . Installed . | . . . Triggered . | . . . Machines | -11 -10 -10 ---------- Run | Yrd Mat Sub Machines Disabled 3 | . . 3 Max in Single Turn 3 | . . 3 Machines Repaired . | . . . Machines Dismantled . | . . . Machines Sabotaged . | . . . Overloaded Fab Kills . | . . . Hacking | -11 -10 -10 --------- Run | Yrd Mat Sub Machines Accessed 10 | . 9 1 Terminals 7 | . 7 . Fabricators . | . . . Repair Stations . | . . . Recycling Units 2 | . 2 . Scanalyzers . | . . . Garrison Access . | . . . Total Hacks 23 | . 20 3 Successful 19 | . 16 3 Failed 4 | . 4 . Catastrophic . | . . . Database Lockouts . | . . . Manual 11 | . 11 . Terminals 18 | . 18 . Fabricators . | . . . Repair Stations . | . . . Recycling Units 2 | . 2 . Scanalyzers . | . . . Garrison Access . | . . . Terminal Hacks 11 | . 8 3 Record 4 | . 1 3 Robot Analysis 2 | . 2 . Locate Traps 2 | . 2 . Disarm Traps 1 | . 1 . Zone Layout 2 | . 2 . Fabricator Hacks . | . . . Repair Station Hacks . | . . . Recycling Unit Hacks . | . . . Scanalyzer . | . . . Garrison Access Hacks . | . . . Unauthorized Hacks 8 | . 8 . Terminals 6 | . 6 . Track 1 | . 1 . Botnet 4 | . 4 . Operators 1 | . 1 . Fabricators . | . . . Repair Stations . | . . . Recycling Units 2 | . 2 . Tunnel 2 | . 2 . Scanalyzers . | . . . Garrison Access . | . . . Data Cores Recovered . | . . . Used . | . . . Hacking Detections 5 | . 5 . Full Trace Events . | . . . Feedback Events . | . . . Feedback Blocked . | . . . Robot Schematics Acquired . | . . . Robots Built . | . . . Authchips . | . . . Time . | . . . Total Robot Build Rating . | . . . Part Schematics Acquired . | . . . Parts Built . | . . . Authchips . | . . . Time . | . . . Total Part Build Rating . | . . . Part Studies Acquired . | . . . Parts Repaired . | . . . Time . | . . . Parts Recycled . | . . . Recycled Matter . | . . . Retrieved Matter . | . . . Retrieved Components . | . . . Parts Scanalyzed . | . . . Part Schematics Acquired . | . . . Parts Damaged . | . . . Bothacking | -11 -10 -10 ------------ Run | Yrd Mat Sub Used RIF Installer . | . . . Robots Hacked . | . . . Non-combat . | . . . Combat . | . . . Robot Hacks Applied . | . . . Relay Couplers Released . | . . . Fabnet Peak Effective % . | . . . Robots Rewired . | . . . Allies Hacked . | . . . Hacks Repelled . | . . . Allies | -11 -10 -10 -------- Run | Yrd Mat Sub Total Allies 1 | . . 1 Largest Group . | . . . Highest-Rated Group . | . . . Highest-Rated Ally . | . . . Total Orders . | . . . Ally Attacks . | . . . Total Damage . | . . . Kills . | . . . Allies Corrupted . | . . . Allies Melted . | . . . Intel | -11 -10 -10 ------- Run | Yrd Mat Sub Active Infowar (turns) 1947 | 90 1256 601 Terrain 1801 | 90 1256 455 Machine Analysis 146 | . . 146 Robot Analysis Total 2 | . 2 . Derelict Logs Recovered . | . . . Drone Launches . | . . . Drone Recoveries . | . . . Exploration | -11 -10 -10 ------------- Run | Yrd Mat Sub Turns Passed 3845 | 207 1256 2382 Spaces Moved 1817 | 147 723 947 Core 1 | 1 . . Treads 934 | . . 934 Legs . | . . . Wheels 882 | 146 723 13 Hover . | . . . Flight . | . . . Fastest Speed 50 | 50 90 90 Average Speed 125 | 89 90 159 Slowest Speed 160 | 90 90 160 Overloaded Moves . | . . . Propulsion Burnouts . | . . . Robots Hopped . | . . . Potential Cave-ins . | . . . Cave-ins Triggered . | . . . Exploration Rate (%) 49 | 6 99 44 Regions Visited 2 Branch Regions 1 Pre-discovered Areas 2 | . 2 . Known Exits Taken . | . . . Unknown Exits Taken 2 | 1 1 . Scrap Searched 6 | . . 6 Spaces Dug 17 | . 15 2 Terrain Destroyed 123 | . 15 108 Melee 17 | . 15 2 Projectile 1 | . . 1 AOE 105 | . . 105 Terrain Rammed . | . . . Walls Destroyed . | . . . Machines Disabled . | . . . Actions | -11 -10 -10 --------- Run | Yrd Mat Sub Total 3074 | 180 1239 1655 Wait 979 | . 432 547 Move 1815 | 146 722 947 Hop . | . . . Pick Up 26 | 5 8 13 Fast Attach 12 | 7 3 2 Attach . | . . . Detach 1 | . . 1 Swap 33 | 1 13 19 Drop 25 | . 12 13 Fire 110 | 21 22 67 Melee 64 | . 27 37 Ram . | . . . Kick . | . . . Crush . | . . . Escape Stasis . | . . . Rewire . | . . . Trap . | . . . Miscellaneous 9 | . . 9 Route ------- -11/Scrapyard -10/Materials (discovered 5 exits: [*Mat x3] / [*Min] / *Sub) -10/Subcaves (discovered 1 exit: [*Rec]) History --------- Turn | Location | Event 15 | -11/Scrapyard | Discovered new exit (range 16) 208 | -11/Scrapyard | Entered Materials 317 | -10/Materials | Build established: Mutant 436 | -10/Materials | Discovered new exit (range 7) 513 | -10/Materials | Discovered new exit (range 5) 802 | -10/Materials | Discovered new exit (range 9) 1286 | -10/Materials | Discovered new exit (range 14) 1369 | -10/Materials | Discovered new exit (range 5) 1464 | -10/Materials | Entered Subcaves 1465 | -10/Subcaves | Approached by a straggling Scientist 2353 | -10/Subcaves | Core integrity fell below 50% 2749 | -10/Subcaves | Disturbed a concealed Subdweller 2950 | -10/Subcaves | Shifting Twisted Machinery released Riot Gun 3299 | -10/Subcaves | Visited Clippyterm 3304 | -10/Subcaves | Learned Research machine intel 3386 | -10/Subcaves | Shifting Twisted Machinery released Sub. Machine Gun 3668 | -10/Subcaves | Shifting Twisted Machinery released Shrapnel Trap 3677 | -10/Subcaves | Shifting Twisted Machinery released Riot Gun 3824 | -10/Subcaves | Discovered new exit (range 12) 3825 | -10/Subcaves | Core integrity fell below 20% 3846 | -10/Subcaves | Destroyed self with Subdweller Shrapnel Launcher Last Messages --------------- 03676_ J2-IRN(u) tweaks Twisted Machinery. Riot Gun falls loose from the Twisted Machinery. 03823_ Splicing S-10 Pest... Amplifying resonance, compromised power stability. 03824_ Lgt. Nuclear Core critical resonance detonation. 03824_ S-10 Pest Lgt. Ion Engine critical resonance detonation. 03824_ S-10 Pest destroyed. 03824_ Scrap Shield destroyed. 03824_ EXIT=FOUND 03825_ Splicing S-10 Pest... Rewriting IFF filter. 03825_ S-10 Pest destroyed. 03828_ Splicing S-10 Pest... Deactivating 1 weapon system. 03828_ Splicing S-10 Pest... Shutting down primary systems. 03829_ S-10 Pest springs to life. 03832_ S-10 Pest destroyed. 03844_ Machine disabled. Map ----- +----------------------------------------------------+ | ??????#" ##???????????????????????????????? | | ??????##" " # #???????????????????????????????? | | ??????##" """""##???????????????????????????????? | | #?##### ######????????????????????????????????? | | ## ## ##???????????????????????????????????? | | ##??????????????????????????????????? | | ##?????????" ??????????????????????? | | # ##???????? ?????????????????????? | | ## #???????? ?????????????????????? | | "## #####???????? #???? ??????????????? | | ##???????????? #???? #?????????????? | | ###??????????? #??? #?????????????? | | #??????????? #### #?????????????? | | #??#??????## #?????????????? | | # #### # ?????## #?????????????? | | ## ##### ###;;;;#???# #?????????????? | | ?### ""#?; ??## #?????????????? | | ???# """" #?; ## #?????????????? | | ???# """ ## ; # #??????????????? | | ???### " ###; t == #???????????????? | | #????# ##< =*%& ???????????????????? | | ##### #; t ;[ #??????????????????????? | | "" """ ##" ; ##?????????????????????? | | "" " ##?" ; ##????????????????????? | | " "" #???"" "; #????????????????????? | | # """"##???????#; @ ##???????????????????? | | ""& #????????##### ##??????????????????? | | " """" ##???????####?# #??????????????????? | | "" #???????## ### #??????????????????? | | ### ######### ## #####??????????????????? | | ??## ## # ## #??????????????????????? | | ???### # ##??????????????????????? | | ?????### ##???????????????????????? | | ???????## ## #????????????????????????? | | ????????# #### #######????????????????????????? | | ????????######??###??????????????????????????????? | | ?????????????????????????????????????????????????? | | ?????????????????????????????????????????????????? | | ?????????????????????????????????????????????????? | | ?????????????????????????????????????????????????? | | ?????????????????????????????????????????????????? | | ?????????????????????????????????????????????????? | | ?????????????????????????????????????????????????? | | ?????????????????????????????????????????????????? | | ?????????????????????????????????????????????????? | | ?????????????????????????????????????????????????? | | ?????????????????????????????????????????????????? | | ?????????????????????????????????????????????????? | | ?????????????????????????????????????????????????? | | ?????????????????????????????????????????????????? | +----------------------------------------------------+ Best States ------------- Heat Dissipation 25 Energy Generation 14 Energy Capacity 250 Matter Stores 300 Matter Capacity 300 Sight Range 16 Terrain Scan Range 16 Terrain Scan Density 10 Armor Coverage 800 Evasion (%) 42 Recoil Reduction 2 Item Schematics ----------------- None Robot Schematics ------------------ None Fabricated ------------ Nothing Repaired ---------- Nothing Studied --------- None Alien Tech Used ----------------- None Achievements -------------- None Challenges ------------ None Game ------ Seed MetafieldTachyonPower Manual? 0 Play Time 00:31:41 Cumulative 1371.4 hours Start 2025.12.07 @ 00:30:32 End 2025.12.07 @ 01:17:53 Sessions 1 Manual Loads 0 Difficulty Rogue Special Mode None Game No. 497 Rogue 497 Adventurer 0 Explorer 0 Win Type - Total 32 Types 16/2/8/0/0/0/6/0/0/0 Lore% 87 Gallery% 84 Achievement% 48 Wizard Run 0 Options --------- Layout 1 ASCII 0 Keyboard 0 Movement Vi Keybinds 0 Fullscreen 0 Font 14/CherryShadow Map View 64x42 Zoom Use 0% Tactical HUD 1 Map Filters NONE Filters NONE Steam 1 RUN: eff47809-1b77-442e-9b3c-57ca2bd1b137